[Event "Late-Titled-Tuesday-Blitz-August-29-2023"]
[Site "Chess.com"]
[Date "2023.08.29"]
[Round "2"]
[White "subham777"]
[Black "jcreyes69"]
[Result "1-0"]
[WhiteElo "2519"]
[BlackElo "2363"]
[TimeControl "180+1"]
[EndTime "14:17:10 PDT"]
[Termination "subham777 won by checkmate"]

1. e4 {[%clk 0:02:27.6]} 1... c5 {[%clk 0:02:56.6]} 2. Nf3 {[%clk 0:02:26.8]}
2... e6 {[%clk 0:02:56.7]} 3. g3 {[%clk 0:02:26.7]} 3... Nc6 {[%clk 0:02:55.4]}
4. Bg2 {[%clk 0:02:20.1]} 4... d5 {[%clk 0:02:51.7]} 5. exd5 {[%clk 0:02:18.6]}
5... exd5 {[%clk 0:02:52.6]} 6. O-O {[%clk 0:02:17.8]} 6... Nf6 {[%clk
0:02:52.1]} 7. d4 {[%clk 0:01:56.2]} 7... Be6 {[%clk 0:02:39.3]} 8. Re1 {[%clk
0:01:30.2]} 8... h6 {[%clk 0:02:33]} 9. dxc5 {[%clk 0:01:27.9]} 9... Bxc5 {[%clk
0:02:32.4]} 10. Nbd2 {[%clk 0:01:26.9]} 10... O-O {[%clk 0:02:31.9]} 11. Nb3
{[%clk 0:01:23.8]} 11... Bb6 {[%clk 0:02:30.5]} 12. c3 {[%clk 0:01:22.7]} 12...
a5 {[%clk 0:02:23.6]} 13. Nbd4 {[%clk 0:01:06.3]} 13... Bg4 {[%clk 0:02:22.6]}
14. Be3 {[%clk 0:01:04.3]} 14... Qd7 {[%clk 0:02:15.8]} 15. Nxc6 {[%clk
0:00:56.2]} 15... Bxe3 {[%clk 0:02:15.4]} 16. Nce5 {[%clk 0:00:44.9]} 16...
Bxf2+ {[%clk 0:02:02.3]} 17. Kxf2 {[%clk 0:00:43.9]} 17... Qd6 {[%clk
0:02:02.6]} 18. Nxg4 {[%clk 0:00:42.9]} 18... Nxg4+ {[%clk 0:02:03.5]} 19. Kg1
{[%clk 0:00:42.5]} 19... Rfe8 {[%clk 0:01:49.4]} 20. Qd4 {[%clk 0:00:38]} 20...
Nf6 {[%clk 0:01:42.3]} 21. Rxe8+ {[%clk 0:00:33.7]} 21... Rxe8 {[%clk 0:01:42]}
22. Re1 {[%clk 0:00:34.3]} 22... Ne4 {[%clk 0:01:40.6]} 23. Nh4 {[%clk
0:00:29.1]} 23... Qc6 {[%clk 0:01:33.5]} 24. Nf5 {[%clk 0:00:22.6]} 24... f6
{[%clk 0:01:31.9]} 25. c4 {[%clk 0:00:16.9]} 25... Qe6 {[%clk 0:01:13.4]} 26.
Qxd5 {[%clk 0:00:14]} 26... Qxd5 {[%clk 0:01:13.4]} 27. cxd5 {[%clk 0:00:14.9]}
27... g6 {[%clk 0:01:13.6]} 28. Rxe4 {[%clk 0:00:13.2]} 28... Rxe4 {[%clk
0:01:09.7]} 29. Bxe4 {[%clk 0:00:14.1]} 29... gxf5 {[%clk 0:01:09.6]} 30. Bxf5
{[%clk 0:00:15]} 30... Kf7 {[%clk 0:01:10]} 31. d6 {[%clk 0:00:15.4]} 31... Ke8
{[%clk 0:01:10.1]} 32. Kf2 {[%clk 0:00:15.4]} 32... Kd8 {[%clk 0:01:10.7]} 33.
Ke3 {[%clk 0:00:15.8]} 33... b5 {[%clk 0:01:11.1]} 34. Kd4 {[%clk 0:00:16.2]}
34... b4 {[%clk 0:01:11.5]} 35. Kc5 {[%clk 0:00:16.1]} 35... h5 {[%clk 0:01:11]}
36. h4 {[%clk 0:00:15.7]} 36... Ke8 {[%clk 0:01:10.2]} 37. Kb6 {[%clk
0:00:15.5]} 37... Kd8 {[%clk 0:01:10.9]} 38. Kxa5 {[%clk 0:00:15]} 38... Ke8
{[%clk 0:01:11.4]} 39. Kb6 {[%clk 0:00:15.2]} 39... Kd8 {[%clk 0:01:12.3]} 40.
Kb7 {[%clk 0:00:15.1]} 40... Ke8 {[%clk 0:01:13.2]} 41. Kc7 {[%clk 0:00:15]}
41... b3 {[%clk 0:01:12]} 42. d7+ {[%clk 0:00:15.2]} 42... Ke7 {[%clk
0:01:12.8]} 43. d8=Q+ {[%clk 0:00:15.2]} 43... Kf7 {[%clk 0:01:13.7]} 44. Qd7+
{[%clk 0:00:15]} 44... Kf8 {[%clk 0:01:14.6]} 45. Bg6 {[%clk 0:00:15]} 45... Kg8
{[%clk 0:01:14.6]} 46. Qf7+ {[%clk 0:00:15.9]} 46... Kh8 {[%clk 0:01:14.8]} 47.
Qh7# {[%clk 0:00:16.8]} 1-0

[Event "Late-Titled-Tuesday-Blitz-August-29-2023"]
[Site "Chess.com"]
[Date "2023.08.29"]
[Round "2"]
[White "KejJaj"]
[Black "chessmateto"]
[Result "1-0"]
[WhiteElo "2218"]
[BlackElo "2442"]
[TimeControl "180+1"]
[EndTime "14:17:11 PDT"]
[Termination "KejJaj won by resignation"]

1. d4 {[%clk 0:03:00.9]} 1... d5 {[%clk 0:02:59.7]} 2. Bf4 {[%clk 0:03:01.5]}
2... c5 {[%clk 0:02:58.1]} 3. e3 {[%clk 0:03:01.3]} 3... Nc6 {[%clk 0:02:57.7]}
4. c3 {[%clk 0:03:01.1]} 4... Qb6 {[%clk 0:02:56]} 5. Qb3 {[%clk 0:03:01.7]}
5... c4 {[%clk 0:02:55.3]} 6. Qc2 {[%clk 0:03:02.4]} 6... Bf5 {[%clk 0:02:53.2]}
7. Qxf5 {[%clk 0:02:54]} 7... Qxb2 {[%clk 0:02:52.7]} 8. Qxd5 {[%clk 0:02:52.2]}
8... Qxa1 {[%clk 0:02:50.2]} 9. Qb5 {[%clk 0:02:52.7]} 9... e5 {[%clk 0:02:27]}
10. Qxb7 {[%clk 0:02:30.7]} 10... exf4 {[%clk 0:02:19.1]} 11. Qxa8+ {[%clk
0:02:23.8]} 11... Nd8 {[%clk 0:01:26.9]} 12. Qe4+ {[%clk 0:02:23.5]} 12... Be7
{[%clk 0:01:26.7]} 13. Bxc4 {[%clk 0:02:19.1]} 13... Nf6 {[%clk 0:01:23.3]} 14.
Qc2 {[%clk 0:02:16.5]} 14... fxe3 {[%clk 0:00:56.5]} 15. fxe3 {[%clk 0:02:00]}
15... Ng4 {[%clk 0:00:54.8]} 16. Ke2 {[%clk 0:01:44.2]} 16... O-O {[%clk
0:00:53.9]} 17. Nf3 {[%clk 0:01:36.3]} 17... Re8 {[%clk 0:00:52.3]} 18. Ne5
{[%clk 0:00:51.3]} 18... Nxe5 {[%clk 0:00:45]} 19. dxe5 {[%clk 0:00:52.2]} 19...
Bc5 {[%clk 0:00:43.4]} 20. Rd1 {[%clk 0:00:51.1]} 20... Nc6 {[%clk 0:00:26.5]}
21. Nd2 {[%clk 0:00:50.4]} 21... Qxd1+ {[%clk 0:00:19.8]} 22. Kxd1 {[%clk
0:00:49.2]} 22... Nxe5 {[%clk 0:00:20.7]} 23. Qf5 {[%clk 0:00:45.5]} 23... Bxe3
{[%clk 0:00:17.7]} 24. Bb3 {[%clk 0:00:32.9]} 24... Ng6 {[%clk 0:00:15]} 25.
Qxf7+ {[%clk 0:00:31.4]} 25... Kh8 {[%clk 0:00:15.3]} 26. Qxe8+ {[%clk
0:00:31.4]} 1-0

[Event "Late-Titled-Tuesday-Blitz-August-29-2023"]
[Site "Chess.com"]
[Date "2023.08.29"]
[Round "2"]
[White "FairChess_on_YouTube"]
[Black "Ali_rastbod"]
[Result "1-0"]
[WhiteElo "3057"]
[BlackElo "2672"]
[TimeControl "180+1"]
[EndTime "14:17:12 PDT"]
[Termination "FairChess_on_YouTube won on time"]

1. d4 {[%clk 0:03:00.9]} 1... Nf6 {[%clk 0:03:00.1]} 2. c4 {[%clk 0:03:01.1]}
2... e6 {[%clk 0:03:00.4]} 3. Nf3 {[%clk 0:03:01.2]} 3... Bb4+ {[%clk
0:02:58.8]} 4. Bd2 {[%clk 0:02:59]} 4... a5 {[%clk 0:02:54.9]} 5. g3 {[%clk
0:02:58.3]} 5... b6 {[%clk 0:02:54.4]} 6. Bg2 {[%clk 0:02:58.2]} 6... Bb7 {[%clk
0:02:55]} 7. O-O {[%clk 0:02:58.3]} 7... O-O {[%clk 0:02:55.6]} 8. Bf4 {[%clk
0:02:56.8]} 8... a4 {[%clk 0:02:42.4]} 9. h4 {[%clk 0:02:41.9]} 9... d5 {[%clk
0:02:24.1]} 10. cxd5 {[%clk 0:02:40.2]} 10... Bxd5 {[%clk 0:02:19.4]} 11. a3
{[%clk 0:02:39]} 11... Bd6 {[%clk 0:02:13.8]} 12. Bg5 {[%clk 0:02:38.7]} 12...
Nbd7 {[%clk 0:02:08]} 13. Nc3 {[%clk 0:02:38.5]} 13... Bb3 {[%clk 0:02:08.3]}
14. Qb1 {[%clk 0:02:36.9]} 14... Ra5 {[%clk 0:01:58.3]} 15. Nd2 {[%clk
0:02:32.7]} 15... e5 {[%clk 0:01:54.3]} 16. Nxb3 {[%clk 0:02:30.4]} 16... axb3
{[%clk 0:01:55.2]} 17. Rd1 {[%clk 0:02:28.4]} 17... exd4 {[%clk 0:01:53]} 18.
Rxd4 {[%clk 0:02:28.5]} 18... h6 {[%clk 0:01:52.6]} 19. Bxf6 {[%clk 0:02:23.9]}
19... Qxf6 {[%clk 0:01:53.5]} 20. e3 {[%clk 0:02:24.2]} 20... Nc5 {[%clk
0:01:39.8]} 21. Nd5 {[%clk 0:02:23.3]} 21... Qe6 {[%clk 0:01:32.3]} 22. Nf4
{[%clk 0:02:13.3]} 22... Bxf4 {[%clk 0:01:19.3]} 23. gxf4 {[%clk 0:02:13.4]}
23... Qf6 {[%clk 0:01:18.7]} 24. h5 {[%clk 0:02:09.9]} 24... Ne6 {[%clk
0:01:18.7]} 25. Rd5 {[%clk 0:02:07.7]} 25... Rxd5 {[%clk 0:01:16.5]} 26. Bxd5
{[%clk 0:02:08.6]} 26... Rd8 {[%clk 0:01:15.1]} 27. Bxb3 {[%clk 0:02:08.1]}
27... Rd2 {[%clk 0:00:47.3]} 28. Qe4 {[%clk 0:02:08]} 28... Qxb2 {[%clk
0:00:39.5]} 29. Rb1 {[%clk 0:02:06.5]} 29... Qf6 {[%clk 0:00:34.8]} 30. Rc1
{[%clk 0:02:00]} 30... c5 {[%clk 0:00:28.3]} 31. Rb1 {[%clk 0:01:57.2]} 31...
Nf8 {[%clk 0:00:26.9]} 32. Bc4 {[%clk 0:01:48.9]} 32... Qh4 {[%clk 0:00:26.6]}
33. Qf3 {[%clk 0:01:48.9]} 33... Rd6 {[%clk 0:00:23.7]} 34. Rd1 {[%clk
0:01:45.3]} 34... Rxd1+ {[%clk 0:00:21.2]} 35. Qxd1 {[%clk 0:01:46.2]} 35... Nh7
{[%clk 0:00:14.7]} 36. Qd5 {[%clk 0:01:38.2]} 36... Qg4+ {[%clk 0:00:09.9]} 37.
Kf1 {[%clk 0:01:37.3]} 37... Qh3+ {[%clk 0:00:07.5]} 38. Ke2 {[%clk 0:01:32.1]}
38... Qg4+ {[%clk 0:00:04.2]} 39. Kd2 {[%clk 0:01:31.3]} 39... Nf6 {[%clk
0:00:04.6]} 40. Qxf7+ {[%clk 0:01:31]} 40... Kh8 {[%clk 0:00:02.5]} 41. Qf8+
{[%clk 0:01:30.7]} 1-0

[Event "Late-Titled-Tuesday-Blitz-August-29-2023"]
[Site "Chess.com"]
[Date "2023.08.29"]
[Round "2"]
[White "bipe137"]
[Black "Hoshka"]
[Result "1-0"]
[WhiteElo "2425"]
[BlackElo "1993"]
[TimeControl "180+1"]
[EndTime "14:17:14 PDT"]
[Termination "bipe137 won by resignation"]

1. d4 {[%clk 0:03:00.9]} 1... d5 {[%clk 0:02:59.6]} 2. c4 {[%clk 0:03:01.2]}
2... dxc4 {[%clk 0:02:59.4]} 3. e4 {[%clk 0:02:59.2]} 3... b5 {[%clk 0:02:57.8]}
4. a4 {[%clk 0:02:58.6]} 4... c6 {[%clk 0:02:57.7]} 5. axb5 {[%clk 0:02:58.2]}
5... cxb5 {[%clk 0:02:57.6]} 6. Nc3 {[%clk 0:02:58.5]} 6... a6 {[%clk
0:02:52.5]} 7. Nxb5 {[%clk 0:02:57.1]} 7... axb5 {[%clk 0:02:52.6]} 8. Rxa8
{[%clk 0:02:58]} 8... Bb7 {[%clk 0:02:52.6]} 9. Ra1 {[%clk 0:02:55]} 9... e6
{[%clk 0:02:52.1]} 10. Ne2 {[%clk 0:02:54.9]} 10... Bxe4 {[%clk 0:02:43.1]} 11.
Nc3 {[%clk 0:02:55]} 11... Bc6 {[%clk 0:02:42.3]} 12. Be2 {[%clk 0:02:53.4]}
12... Nf6 {[%clk 0:02:40.6]} 13. Bf3 {[%clk 0:02:51.7]} 13... Bb4 {[%clk
0:02:31.3]} 14. Be3 {[%clk 0:02:48.5]} 14... O-O {[%clk 0:02:30]} 15. O-O {[%clk
0:02:47.7]} 15... Qd7 {[%clk 0:02:16.1]} 16. Bg5 {[%clk 0:02:38.5]} 16... Be7
{[%clk 0:02:07.7]} 17. Re1 {[%clk 0:02:25.7]} 17... Rd8 {[%clk 0:02:06.6]} 18.
Bxc6 {[%clk 0:02:17.5]} 18... Qxc6 {[%clk 0:02:03.5]} 19. Ra7 {[%clk 0:02:16.9]}
19... Bc5 {[%clk 0:01:48.3]} 20. Bxf6 {[%clk 0:02:13.8]} 20... gxf6 {[%clk
0:01:42.4]} 21. Qg4+ {[%clk 0:02:13.7]} 21... Kf8 {[%clk 0:01:28.2]} 22. dxc5
{[%clk 0:02:13.3]} 22... Qxc5 {[%clk 0:01:27.7]} 23. Ra5 {[%clk 0:02:10.8]}
23... Rd2 {[%clk 0:01:17.1]} 24. Qg3 {[%clk 0:02:08.8]} 24... Nc6 {[%clk
0:01:11.8]} 25. Rxb5 {[%clk 0:02:08.1]} 25... Qd4 {[%clk 0:01:08.4]} 26. h3
{[%clk 0:02:03.4]} 26... f5 {[%clk 0:01:04.4]} 27. Qf3 {[%clk 0:01:45.4]} 27...
Ne7 {[%clk 0:00:50.1]} 28. Rb8+ {[%clk 0:01:44.6]} 28... Kg7 {[%clk 0:00:49.7]}
29. Qg3+ {[%clk 0:01:38.6]} 29... Ng6 {[%clk 0:00:48.1]} 30. h4 {[%clk
0:01:37.6]} 30... f4 {[%clk 0:00:47.6]} 31. Qf3 {[%clk 0:01:25.5]} 31... Nxh4
{[%clk 0:00:43.9]} 32. Qg4+ {[%clk 0:01:25.5]} 32... Ng6 {[%clk 0:00:43.3]} 33.
Ne4 {[%clk 0:01:26]} 33... Rxb2 {[%clk 0:00:37.6]} 34. Rxb2 {[%clk 0:01:20.7]}
34... Qxb2 {[%clk 0:00:37]} 35. Qg5 {[%clk 0:01:17.3]} 35... f3 {[%clk
0:00:30.8]} 36. gxf3 {[%clk 0:01:16.9]} 36... Qd4 {[%clk 0:00:26.5]} 37. Rc1
{[%clk 0:01:12.5]} 37... h6 {[%clk 0:00:24.1]} 38. Qc5 {[%clk 0:01:12.1]} 38...
Qd3 {[%clk 0:00:20]} 39. Qxc4 {[%clk 0:01:10.9]} 39... Qxf3 {[%clk 0:00:19]} 40.
Qc3+ {[%clk 0:01:11.2]} 40... Kf8 {[%clk 0:00:14.9]} 41. Qxf3 {[%clk 0:01:10.5]}
1-0

[Event "Late-Titled-Tuesday-Blitz-August-29-2023"]
[Site "Chess.com"]
[Date "2023.08.29"]
[Round "2"]
[White "diamonds13"]
[Black "adiosabu"]
[Result "0-1"]
[WhiteElo "2359"]
[BlackElo "2554"]
[TimeControl "180+1"]
[EndTime "14:17:19 PDT"]
[Termination "adiosabu won by resignation"]

1. d4 {[%clk 0:02:57.4]} 1... d6 {[%clk 0:02:51.2]} 2. Nf3 {[%clk 0:02:54.9]}
2... Bg4 {[%clk 0:02:50.1]} 3. h3 {[%clk 0:02:50.3]} 3... Bxf3 {[%clk
0:02:49.3]} 4. exf3 {[%clk 0:02:44.5]} 4... d5 {[%clk 0:02:43.6]} 5. c4 {[%clk
0:02:43.1]} 5... c6 {[%clk 0:02:42.1]} 6. Nc3 {[%clk 0:02:42.6]} 6... e6 {[%clk
0:02:41]} 7. Bf4 {[%clk 0:02:40.3]} 7... Nd7 {[%clk 0:02:39.5]} 8. Qb3 {[%clk
0:02:39.8]} 8... Qb6 {[%clk 0:02:38.6]} 9. c5 {[%clk 0:02:39.6]} 9... Qxb3
{[%clk 0:02:38]} 10. axb3 {[%clk 0:02:39.9]} 10... a6 {[%clk 0:02:37.6]} 11. b4
{[%clk 0:02:39.8]} 11... Rc8 {[%clk 0:02:37]} 12. Bd3 {[%clk 0:02:35.7]} 12...
f6 {[%clk 0:02:36.2]} 13. Kd2 {[%clk 0:02:35.4]} 13... Kf7 {[%clk 0:02:36]} 14.
Bg3 {[%clk 0:02:33.1]} 14... Ne7 {[%clk 0:02:33.1]} 15. f4 {[%clk 0:02:32.8]}
15... Nf5 {[%clk 0:02:31]} 16. Bxf5 {[%clk 0:02:31.2]} 16... exf5 {[%clk
0:02:30.6]} 17. Rhe1 {[%clk 0:02:29.2]} 17... Be7 {[%clk 0:02:29.7]} 18. Re3
{[%clk 0:02:29.1]} 18... Rhe8 {[%clk 0:02:25.3]} 19. Rae1 {[%clk 0:02:28.7]}
19... Nf8 {[%clk 0:02:24.1]} 20. f3 {[%clk 0:02:24.7]} 20... Ng6 {[%clk
0:02:22.6]} 21. Bh2 {[%clk 0:02:21.3]} 21... Nh4 {[%clk 0:02:20.3]} 22. g3
{[%clk 0:02:20.9]} 22... Ng2 {[%clk 0:02:17.4]} 23. Rxe7+ {[%clk 0:02:10.9]}
23... Rxe7 {[%clk 0:02:17]} 24. Rxe7+ {[%clk 0:02:11]} 24... Kxe7 {[%clk
0:02:17.3]} 25. Ke2 {[%clk 0:02:11.2]} 25... Kd7 {[%clk 0:01:53.4]} 26. Kf2
{[%clk 0:02:10.3]} 26... Re8 {[%clk 0:01:52.1]} 27. Kxg2 {[%clk 0:02:09.5]}
27... Re1 {[%clk 0:01:52.6]} 28. Bg1 {[%clk 0:02:07.2]} 28... Rc1 {[%clk
0:01:49.6]} 29. Na4 {[%clk 0:02:03.4]} 29... Ke6 {[%clk 0:01:45.5]} 30. Be3
{[%clk 0:01:33.5]} 30... Rc4 {[%clk 0:01:37.9]} 31. Nc3 {[%clk 0:01:21.5]} 31...
Rxb4 {[%clk 0:01:36.2]} 32. Nd1 {[%clk 0:01:19.9]} 32... a5 {[%clk 0:01:33.2]}
33. Kf2 {[%clk 0:01:19.1]} 33... a4 {[%clk 0:01:33.4]} 34. Ke2 {[%clk 0:01:01]}
34... Rxb2+ {[%clk 0:01:27.5]} 35. Kd3 {[%clk 0:00:53]} 35... a3 {[%clk
0:01:21.1]} 36. Nxb2 {[%clk 0:00:39.3]} 36... a2 {[%clk 0:01:20.7]} 37. Kc2
{[%clk 0:00:39.4]} 37... a1=Q {[%clk 0:01:20.6]} 38. Bc1 {[%clk 0:00:39.4]}
38... Qa3 {[%clk 0:01:17.3]} 39. Nd3 {[%clk 0:00:37.6]} 39... Qa4+ {[%clk
0:01:16.1]} 40. Kd2 {[%clk 0:00:36.7]} 40... Qxd4 {[%clk 0:01:15.7]} 41. Bb2
{[%clk 0:00:36.5]} 41... Qg1 {[%clk 0:01:15.1]} 42. g4 {[%clk 0:00:35.7]} 42...
Qg2+ {[%clk 0:01:13.9]} 43. Ke3 {[%clk 0:00:34.9]} 43... Qxh3 {[%clk 0:01:12.2]}
44. gxf5+ {[%clk 0:00:33.8]} 44... Kxf5 {[%clk 0:01:11.9]} 45. Nf2 {[%clk
0:00:33.8]} 45... Qf1 {[%clk 0:01:10]} 46. Bd4 {[%clk 0:00:34.3]} 46... Qc1+
{[%clk 0:01:08.3]} 47. Ke2 {[%clk 0:00:33.7]} 47... Qxf4 {[%clk 0:01:08.9]} 48.
Be3 {[%clk 0:00:32.4]} 48... Qc4+ {[%clk 0:01:08.8]} 0-1

[Event "Late-Titled-Tuesday-Blitz-August-29-2023"]
[Site "Chess.com"]
[Date "2023.08.29"]
[Round "2"]
[White "YEIKO2017"]
[Black "NotFischer"]
[Result "1-0"]
[WhiteElo "2473"]
[BlackElo "2252"]
[TimeControl "180+1"]
[EndTime "14:17:21 PDT"]
[Termination "YEIKO2017 won by resignation"]

1. e4 {[%clk 0:03:00.9]} 1... d5 {[%clk 0:02:59.4]} 2. exd5 {[%clk 0:03:00.1]}
2... Qxd5 {[%clk 0:03:00.3]} 3. Nc3 {[%clk 0:03:00]} 3... Qd6 {[%clk 0:03:00.5]}
4. d4 {[%clk 0:02:59.1]} 4... Nf6 {[%clk 0:03:00.6]} 5. Nf3 {[%clk 0:02:59.3]}
5... c6 {[%clk 0:03:00.7]} 6. Ne5 {[%clk 0:02:59.4]} 6... Nbd7 {[%clk
0:02:59.2]} 7. Nc4 {[%clk 0:02:58.5]} 7... Qc7 {[%clk 0:02:57.8]} 8. Qf3 {[%clk
0:02:58.8]} 8... e5 {[%clk 0:02:46.5]} 9. dxe5 {[%clk 0:02:44.3]} 9... Nxe5
{[%clk 0:02:46.1]} 10. Qe2 {[%clk 0:02:44.3]} 10... Nd7 {[%clk 0:02:05.2]} 11.
f4 {[%clk 0:02:40]} 11... Bb4 {[%clk 0:02:03.3]} 12. Nxe5 {[%clk 0:02:33.8]}
12... O-O {[%clk 0:01:56.9]} 13. Bd2 {[%clk 0:02:33.7]} 13... Re8 {[%clk
0:01:50.5]} 14. O-O-O {[%clk 0:02:32]} 14... Nb6 {[%clk 0:01:35.3]} 15. Qf3
{[%clk 0:02:15.4]} 15... a5 {[%clk 0:01:25.5]} 16. a3 {[%clk 0:02:13]} 16... Bf8
{[%clk 0:01:23.7]} 17. Bd3 {[%clk 0:02:09.6]} 17... Be6 {[%clk 0:01:22.4]} 18.
Rhe1 {[%clk 0:02:03.5]} 18... Nd5 {[%clk 0:01:03.9]} 19. Nxd5 {[%clk 0:01:51.7]}
19... Bxd5 {[%clk 0:01:03.8]} 20. Be4 {[%clk 0:01:44.6]} 20... Bxe4 {[%clk
0:01:03.1]} 21. Rxe4 {[%clk 0:01:40.2]} 21... b5 {[%clk 0:01:00.1]} 22. Rde1
{[%clk 0:01:33]} 22... b4 {[%clk 0:00:57.3]} 23. a4 {[%clk 0:01:31.9]} 23...
Rac8 {[%clk 0:00:55.3]} 24. Qb3 {[%clk 0:01:29.3]} 24... Red8 {[%clk 0:00:47.2]}
25. f5 {[%clk 0:01:19.7]} 25... Bd6 {[%clk 0:00:41.1]} 26. f6 {[%clk 0:01:17.3]}
26... g6 {[%clk 0:00:40.3]} 27. Nc4 {[%clk 0:01:14.3]} 27... Bf8 {[%clk
0:00:37.5]} 28. Re7 {[%clk 0:01:11.2]} 28... Bxe7 {[%clk 0:00:22.4]} 29. fxe7
{[%clk 0:01:12.1]} 29... Re8 {[%clk 0:00:21.8]} 30. Bg5 {[%clk 0:01:09.9]} 30...
Qxh2 {[%clk 0:00:21.1]} 31. Qf3 {[%clk 0:01:04.3]} 31... c5 {[%clk 0:00:13.5]}
32. Bf4 {[%clk 0:01:03]} 32... Qh4 {[%clk 0:00:12.2]} 33. g3 {[%clk 0:01:01.9]}
33... Qf6 {[%clk 0:00:10.8]} 34. Nd6 {[%clk 0:00:59.8]} 34... Rxe7 {[%clk
0:00:05.4]} 35. Rxe7 {[%clk 0:00:56.1]} 35... Qxe7 {[%clk 0:00:06.3]} 36. Nxc8
{[%clk 0:00:55.1]} 1-0

[Event "Late-Titled-Tuesday-Blitz-August-29-2023"]
[Site "Chess.com"]
[Date "2023.08.29"]
[Round "2"]
[White "YQPerez"]
[Black "ozates"]
[Result "1-0"]
[WhiteElo "2893"]
[BlackElo "2569"]
[TimeControl "180+1"]
[EndTime "14:17:23 PDT"]
[Termination "YQPerez won by resignation"]

1. e4 {[%clk 0:03:00.9]} 1... c5 {[%clk 0:02:54.6]} 2. c3 {[%clk 0:03:00.9]}
2... d5 {[%clk 0:02:53.5]} 3. exd5 {[%clk 0:03:01.2]} 3... Nf6 {[%clk 0:02:54]}
4. d4 {[%clk 0:02:58.8]} 4... cxd4 {[%clk 0:02:54.2]} 5. Qxd4 {[%clk 0:02:56.1]}
5... Qxd5 {[%clk 0:02:53.8]} 6. Nf3 {[%clk 0:02:54.4]} 6... Nc6 {[%clk
0:02:53.8]} 7. Qxd5 {[%clk 0:02:41.6]} 7... Nxd5 {[%clk 0:02:54.7]} 8. Bb5
{[%clk 0:02:35.6]} 8... Bd7 {[%clk 0:02:54.6]} 9. O-O {[%clk 0:02:35.1]} 9... a6
{[%clk 0:02:49.4]} 10. Bc4 {[%clk 0:02:33]} 10... Nb6 {[%clk 0:02:47.3]} 11. Bb3
{[%clk 0:02:33.3]} 11... e6 {[%clk 0:02:47.9]} 12. Be3 {[%clk 0:02:33.2]} 12...
Nd5 {[%clk 0:02:35.1]} 13. Bxd5 {[%clk 0:02:33.1]} 13... exd5 {[%clk 0:02:36]}
14. Nbd2 {[%clk 0:02:27.4]} 14... Bd6 {[%clk 0:02:29.4]} 15. Nb3 {[%clk
0:02:26.8]} 15... O-O {[%clk 0:02:29.1]} 16. Bc5 {[%clk 0:02:27.1]} 16... Bxc5
{[%clk 0:02:22.6]} 17. Nxc5 {[%clk 0:02:28]} 17... Bg4 {[%clk 0:02:21.8]} 18.
Rad1 {[%clk 0:02:14.6]} 18... Bxf3 {[%clk 0:01:59.3]} 19. gxf3 {[%clk
0:02:15.5]} 19... b6 {[%clk 0:01:40.3]} 20. Nd7 {[%clk 0:02:04.9]} 20... Rfd8
{[%clk 0:01:39.9]} 21. Rxd5 {[%clk 0:02:05.1]} 21... Ne5 {[%clk 0:01:28.7]} 22.
Rfd1 {[%clk 0:01:44.3]} 22... Nxd7 {[%clk 0:01:23.4]} 23. Rxd7 {[%clk 0:01:45]}
23... Rxd7 {[%clk 0:01:24.2]} 24. Rxd7 {[%clk 0:01:45.3]} 24... g6 {[%clk
0:01:15.5]} 25. Kf1 {[%clk 0:01:31.6]} 25... Kg7 {[%clk 0:01:15.8]} 26. Rd6
{[%clk 0:01:31.6]} 26... Rb8 {[%clk 0:01:15.2]} 27. Ke2 {[%clk 0:01:28.2]} 27...
Rb7 {[%clk 0:01:11.5]} 28. c4 {[%clk 0:01:27.4]} 28... Kf8 {[%clk 0:01:11.7]}
29. Kd3 {[%clk 0:01:22.5]} 29... Ke7 {[%clk 0:01:12.1]} 30. Rd5 {[%clk
0:01:22.6]} 30... Ke6 {[%clk 0:01:10.7]} 31. a4 {[%clk 0:01:20.1]} 31... h5
{[%clk 0:01:09.4]} 32. b4 {[%clk 0:01:18]} 32... Rb8 {[%clk 0:01:04.9]} 33. Kc3
{[%clk 0:01:17.3]} 33... Rc8 {[%clk 0:00:56]} 34. Kd4 {[%clk 0:01:16.5]} 34...
Rb8 {[%clk 0:00:54.2]} 35. h4 {[%clk 0:01:05.6]} 35... Rb7 {[%clk 0:00:48.6]}
36. Rd8 {[%clk 0:01:04.6]} 36... Ke7 {[%clk 0:00:47.9]} 37. Ra8 {[%clk
0:01:04.1]} 37... Rd7+ {[%clk 0:00:47.1]} 38. Kc3 {[%clk 0:01:04.4]} 38... f6
{[%clk 0:00:31]} 39. Rxa6 {[%clk 0:01:03.7]} 39... g5 {[%clk 0:00:30.9]} 40.
hxg5 {[%clk 0:01:01.7]} 40... fxg5 {[%clk 0:00:30.2]} 41. Rxb6 {[%clk
0:01:02.3]} 41... h4 {[%clk 0:00:27.8]} 42. Rh6 {[%clk 0:01:02.4]} 42... Kf7
{[%clk 0:00:22.8]} 43. f4 {[%clk 0:01:02.7]} 1-0

[Event "Late-Titled-Tuesday-Blitz-August-29-2023"]
[Site "Chess.com"]
[Date "2023.08.29"]
[Round "2"]
[White "vladgoncharov"]
[Black "Jojo_898"]
[Result "1-0"]
[WhiteElo "2522"]
[BlackElo "2364"]
[TimeControl "180+1"]
[EndTime "14:17:23 PDT"]
[Termination "vladgoncharov won by checkmate"]

1. d4 {[%clk 0:03:00.9]} 1... Nf6 {[%clk 0:02:57.8]} 2. c4 {[%clk 0:03:00.9]}
2... e6 {[%clk 0:02:57.5]} 3. Nc3 {[%clk 0:03:01]} 3... b6 {[%clk 0:02:57.8]} 4.
Nf3 {[%clk 0:02:57.5]} 4... Bb7 {[%clk 0:02:57.8]} 5. Bg5 {[%clk 0:02:57.5]}
5... Be7 {[%clk 0:02:56.3]} 6. e3 {[%clk 0:02:55.8]} 6... O-O {[%clk 0:02:55.2]}
7. Bd3 {[%clk 0:02:55.2]} 7... d5 {[%clk 0:02:52.2]} 8. Bxf6 {[%clk 0:02:52.2]}
8... Bxf6 {[%clk 0:02:51.5]} 9. cxd5 {[%clk 0:02:52.4]} 9... exd5 {[%clk
0:02:50.2]} 10. O-O {[%clk 0:02:52.3]} 10... c5 {[%clk 0:02:46.9]} 11. dxc5
{[%clk 0:02:50.8]} 11... bxc5 {[%clk 0:02:46.5]} 12. Rc1 {[%clk 0:02:48.7]}
12... d4 {[%clk 0:02:36.5]} 13. exd4 {[%clk 0:02:44.2]} 13... cxd4 {[%clk
0:02:36.4]} 14. Ne4 {[%clk 0:02:43.9]} 14... Nc6 {[%clk 0:02:33.1]} 15. Nc5
{[%clk 0:02:40.5]} 15... Bc8 {[%clk 0:02:23.2]} 16. Be4 {[%clk 0:02:39]} 16...
Qd6 {[%clk 0:02:09.1]} 17. Qa4 {[%clk 0:02:34.3]} 17... Bg4 {[%clk 0:01:19]} 18.
Qxc6 {[%clk 0:02:26.8]} 18... Qf4 {[%clk 0:01:19.1]} 19. Nd3 {[%clk 0:02:20.1]}
19... Qh6 {[%clk 0:01:16.7]} 20. Qxa8 {[%clk 0:02:02]} 20... Rxa8 {[%clk
0:01:15.6]} 21. Bxa8 {[%clk 0:02:02]} 21... g6 {[%clk 0:01:15.3]} 22. Bd5 {[%clk
0:01:56.8]} 22... Qh5 {[%clk 0:01:10.8]} 23. Rc5 {[%clk 0:01:41.3]} 23... Kg7
{[%clk 0:01:04.9]} 24. Bxf7 {[%clk 0:01:37.2]} 24... Qh6 {[%clk 0:01:01.3]} 25.
Bd5 {[%clk 0:01:35.8]} 25... Qh5 {[%clk 0:00:52.8]} 26. Be4 {[%clk 0:01:34.9]}
26... Bf5 {[%clk 0:00:49.9]} 27. Bxf5 {[%clk 0:01:32]} 27... gxf5 {[%clk
0:00:50.5]} 28. h3 {[%clk 0:01:26.9]} 28... Qf7 {[%clk 0:00:46.4]} 29. Rfc1
{[%clk 0:01:25.3]} 29... Qxa2 {[%clk 0:00:34.3]} 30. Rxf5 {[%clk 0:01:24.1]}
30... Qa6 {[%clk 0:00:30.6]} 31. Nf4 {[%clk 0:01:19.7]} 31... Bd8 {[%clk
0:00:24.7]} 32. Re1 {[%clk 0:01:10.4]} 32... d3 {[%clk 0:00:20.6]} 33. Ne6+
{[%clk 0:01:06.7]} 33... Kg6 {[%clk 0:00:19.7]} 34. Rd5 {[%clk 0:01:05.3]} 34...
Ba5 {[%clk 0:00:18.1]} 35. Nf4+ {[%clk 0:01:04]} 35... Kf7 {[%clk 0:00:16.9]}
36. Re6 {[%clk 0:01:02.2]} 36... Qb7 {[%clk 0:00:14.3]} 37. Ng5+ {[%clk
0:01:00.3]} 37... Kg7 {[%clk 0:00:13.8]} 38. Nh5+ {[%clk 0:00:59.9]} 38... Kf8
{[%clk 0:00:11.9]} 39. Rf5+ {[%clk 0:00:59]} 39... Kg8 {[%clk 0:00:11.7]} 40.
Re8# {[%clk 0:00:58.8]} 1-0